fUST/lending_fUST_20250817
["ID","MTS","AMOUNT","RATE_DAILY","PERIOD"]
[379933971,1755442284476,-373.23298229,0.00022304,2]
[379933972,1755442284485,-788.99,0.00022304,2]
[379933973,1755442284495,-613.42,0.00022304,2]
[379933974,1755442284505,-581.88,0.00022304,2]
[379933975,1755442284514,-151.0,0.00022304,7]
[379933976,1755442284523,-282.037024,0.00022304,7]
[379933977,1755442284532,-1673.56,0.00022304,2]
[379933978,1755442284541,-2358.67,0.00022304,2]
[379933979,1755442284551,-687.648653,0.00022305,7]
[379933980,1755442284560,-687.648653,0.00022305,7]
[379933981,1755442284569,-151.0,0.00022307,7]
[379933982,1755442284579,-151.0,0.00022312,7]
[379933983,1755442284589,-830.3035431,0.00022327,2]
[379933984,1755442284598,-990.53028143,0.00022327,2]
[379933985,1755442284607,-660.0,0.0002234,2]
[379933986,1755442284620,-151.0,0.00022365,7]
[379933987,1755442284629,-151.0,0.00022365,7]
[379933988,1755442284639,-493.313819,0.00022365,7]
[379933989,1755442284649,-493.313819,0.00022365,7]
[379933990,1755442284658,-151.0,0.00022365,7]
[379933991,1755442284668,-151.0,0.00022365,7]
[379933992,1755442284677,-151.0,0.00022365,7]
[379933993,1755442284689,-12682.46447135,0.000224,7]
[379933994,1755442284699,-11131.59102156,0.000224,7]
[379933995,1755442284708,-417.15472785,0.000224,7]
[379933996,1755442284719,-160.0,0.000224,7]
[379933997,1755442284728,-375.77065697,0.000224,7]
[379933998,1755442284737,-215.71995163,0.000224,7]
[379933999,1755442284747,-160.7855539,0.00022411,2]
[379934000,1755442284757,-293.7943279,0.00022411,2]
[379934001,1755442284766,-431.9864578,0.00022411,2]
[379934002,1755442284775,-293.7943279,0.00022411,2]
[379934003,1755442284785,-228.443223,0.00022416,7]
[379934004,1755442284794,-228.443223,0.00022416,7]
[379934005,1755442284803,-8827.72446853,0.00022416,2]
[379934006,1755442284813,-151.0,0.0002242,7]
[379934007,1755442284823,-951.6485,0.00022428,7]
[379934008,1755442284833,-951.6485,0.00022428,7]
[379934009,1755442284843,-580.6760442,0.00022438,2]
[379934010,1755442284852,-580.6760442,0.00022438,2]
[379934011,1755442284862,-160.7855539,0.00022438,2]
[379934012,1755442284874,-151.0,0.00022456,7]
[379934013,1755442284883,-151.0,0.00022456,7]
[379934014,1755442284892,-167.8,0.00022456,7]
[379934015,1755442284902,-167.8,0.00022456,7]
[379934016,1755442284911,-397.7164,0.00022456,7]
[379934017,1755442284920,-151.0,0.0002246,7]
[379934018,1755442284930,-250.0,0.00022466,2]
[379934019,1755442284940,-431.9864578,0.00022466,2]
[379934020,1755442284949,-293.7943279,0.00022466,2]
[379934021,1755442284959,-587.487889,0.00022466,2]
[379934022,1755442284968,-431.9864578,0.00022466,2]
[379934023,1755442284978,-431.9864578,0.00022466,2]
[379934024,1755442284987,-431.9864578,0.00022466,2]
[379934025,1755442284997,-872.0,0.00022466,2]
[379934026,1755442285006,-527.36,0.00022479,2]
[379934027,1755442285015,-912.72,0.00022479,2]
[379934028,1755442285025,-480.0,0.00022479,2]
[379934029,1755442285034,-563.11,0.00022479,2]
[379934030,1755442285043,-480.0,0.00022479,2]
[379934031,1755442285053,-591.29,0.00022479,2]
[379934032,1755442285062,-480.0,0.00022479,2]
[379934033,1755442285071,-1163.69,0.00022479,2]
[379934034,1755442285081,-480.0,0.00022479,2]
[379934035,1755442285090,-928.64,0.00022479,2]
[379934036,1755442285100,-908.19,0.00022479,2]
[379934037,1755442285109,-480.0,0.00022479,2]
[379934038,1755442285119,-480.0,0.00022479,2]
[379934039,1755442285128,-709.65,0.00022479,2]
[379934040,1755442285138,-1949.06,0.00022479,2]
[379934041,1755442285148,-2225.78,0.00022479,2]
[379934042,1755442285158,-1000.32,0.00022479,2]
[379934043,1755442285168,-368.39666956,0.00022479,2]
[379934044,1755442285178,-1436.82,0.00022479,2]
[379934045,1755442285187,-6061.46,0.00022479,2]
[379934046,1755442285196,-1175.2,0.00022479,2]
[379934047,1755442285206,-763.93,0.00022479,2]
[379934048,1755442285215,-526.35,0.00022479,2]
[379934049,1755442285224,-480.0,0.00022479,2]
[379934050,1755442285233,-695.09,0.00022479,2]
[379934051,1755442285244,-715.83,0.00022479,2]
[379934052,1755442285253,-494.32,0.00022479,2]
[379934053,1755442285262,-510.35,0.00022479,2]
[379934054,1755442285272,-504.66,0.00022479,2]
[379934055,1755442285282,-580.6760442,0.00022493,2]
[379934056,1755442285291,-293.7943279,0.00022493,2]
[379934057,1755442285300,-580.2751314,0.00022493,2]
[379934058,1755442285309,-1000.0,0.000225,2]
[379934059,1755442285319,-1000.0,0.000225,2]
[379934060,1755442285328,-1000.0,0.000225,2]
[379934061,1755442285338,-1000.0,0.000225,2]
[379934062,1755442285347,-1000.0,0.000225,2]
[379934063,1755442285356,-1000.0,0.000225,2]
[379934064,1755442285366,-1000.0,0.000225,2]
[379934065,1755442285375,-1011.53436713,0.000225,2]
[379934066,1755442285385,-264122.43838645,0.000225,15]
[379934067,1755442285394,-250.0,0.000225,2]
[379934068,1755442285404,-250.7,0.000225,2]
[379934069,1755442285414,-151.0,0.000225,7]
[379934070,1755442285424,-151.0,0.000225,7]
[379934071,1755442285434,-228.443223,0.000225,7]
[379934072,1755442285443,-228.443223,0.000225,7]
[379934073,1755442285453,-160.226413,0.000225,7]
[379934074,1755442285462,-160.226413,0.000225,7]
[379934075,1755442285472,-951.6485,0.000225,7]
[379934076,1755442285481,-951.648498,0.000225,7]
[379934077,1755442285492,-151.0,0.000225,7]
[379934078,1755442285501,-151.0,0.000225,7]
[379934079,1755442285510,-502.775489,0.000225,7]
[379934080,1755442285520,-151.0,0.000225,7]
[379934081,1755442285529,-502.775497,0.000225,7]
[379934082,1755442285539,-151.0,0.000225,7]
[379934083,1755442285549,-229.59159,0.000225,7]
[379934084,1755442285558,-167.8,0.000225,7]
[379934085,1755442285567,-167.8,0.000225,7]
[379934086,1755442285576,-397.71639,0.000225,7]
[379934087,1755442285585,-151.0,0.000225,7]
[379934088,1755442285594,-151.0,0.000225,7]
[379934089,1755442285603,-687.648653,0.000225,7]
[379934090,1755442285613,-687.648653,0.000225,7]
[379934091,1755442285624,-466.476595,0.000225,7]
[379934092,1755442285633,-466.476597,0.000225,7]
[379934093,1755442285642,-151.0,0.000225,7]
[379934094,1755442285651,-983.609175,0.000225,7]
[379934095,1755442285662,-983.609175,0.000225,7]
[379934096,1755442285672,-983.609175,0.000225,7]
[379934097,1755442285681,-983.609175,0.000225,7]
[379934098,1755442285691,-151.0,0.000225,7]
[379934099,1755442285701,-300.0,0.00022521,2]
[379934100,1755442285710,-1000.0,0.00022521,2]
[379934101,1755442285720,-1000.0,0.00022521,2]
[379934102,1755442285729,-1000.0,0.00022521,2]
[379934103,1755442285738,-1000.0,0.00022521,2]
[379934104,1755442285747,-962.85309979,0.00022521,2]
[379934105,1755442285758,-1161.151632,0.00022541,2]
[379934106,1755442285767,-320.5981957,0.00022541,2]
[379934107,1755442285776,-151.0,0.00022542,7]
[379934108,1755442285785,-153.0,0.00022569,2]
[379934109,1755442285795,-306.0,0.00022569,2]
[379934110,1755442285805,-153.0,0.00022569,2]
[379934111,1755442285814,-153.0,0.00022569,2]
[379934112,1755442285823,-153.0,0.00022569,2]
[379934113,1755442285832,-306.0,0.00022569,2]
[379934114,1755442285841,-306.0,0.00022569,2]
[379934115,1755442285850,-159.60615398,0.00022573,2]
[379934116,1755442285860,-598.46834553,0.00022574,2]
[379934117,1755442285869,-1819.3,0.00022574,2]
[379934118,1755442285878,-3256.49,0.00022575,2]
[379934119,1755442285888,-480.0,0.00022576,2]
[379934120,1755442285898,-698.95,0.00022576,2]
[379934121,1755442285907,-583.1918724,0.00022576,2]
[379934122,1755442285917,-687.45,0.00022576,2]
[379934123,1755442285927,-549.85,0.00022576,2]
[379934124,1755442285936,-971.72,0.00022576,2]
[379934125,1755442285946,-480.0,0.00022576,2]
[379934126,1755442285955,-573.88,0.00022576,2]
[379934127,1755442285965,-352.12,0.00022576,2]
[379934128,1755442285974,-809.41,0.00022576,2]
[379934129,1755442285983,-719.18,0.00022576,2]
[379934130,1755442285992,-480.0,0.00022576,2]
[379934131,1755442286001,-584.35,0.00022576,2]
[379934132,1755442286010,-492.35,0.00022576,2]
[379934133,1755442286019,-894.92,0.00022577,2]
[379934134,1755442286028,-7675.82,0.00022577,2]
[379934135,1755442286037,-990.44,0.00022577,2]
[379934136,1755442286046,-5032.79,0.00022577,2]
[379934137,1755442286055,-788.99,0.00022578,2]
[379934138,1755442286065,-613.42,0.00022578,2]
[379934139,1755442286074,-581.88,0.00022578,2]
[379934140,1755442286084,-1673.56,0.00022578,2]
[379934141,1755442286096,-2358.67,0.00022578,2]
[379934142,1755442286105,-112260.83524407,0.000226,2]
[379934143,1755442286114,-39845.8474261,0.000226,5]
[379934144,1755442286123,-151.0,0.000226,7]
[379934145,1755442286132,-300.010742,0.000226,7]
[379934146,1755442286142,-300.010742,0.000226,7]
[379934147,1755442286151,-223.64179,0.000226,7]
[379934148,1755442286161,-151.0,0.000226,7]
[379934149,1755442286171,-410.539385,0.000226,7]
[379934150,1755442286180,-410.539385,0.000226,7]
[379934151,1755442286190,-151.0,0.000226,7]
[379934152,1755442286199,-151.0,0.000226,7]
[379934153,1755442286208,-493.313819,0.000226,7]
[379934154,1755442286218,-493.313819,0.000226,7]
[379934155,1755442286229,-151.0,0.000226,7]
[379934156,1755442286239,-164.037009,0.000226,7]
[379934157,1755442286248,-151.0,0.000226,7]
[379934158,1755442286258,-273.692923,0.000226,7]
[379934159,1755442286267,-273.692923,0.000226,7]
[379934160,1755442286276,-151.0,0.000226,7]
[379934161,1755442286287,-151.0,0.000226,7]
[379934162,1755442286298,-228.443223,0.000226,7]
[379934163,1755442286307,-228.443223,0.000226,7]
[379934164,1755442286316,-160.226413,0.000226,7]
[379934165,1755442286325,-160.226419,0.000226,7]
[379934166,1755442286335,-154.02821,0.000226,7]
[379934167,1755442286344,-687.648653,0.000226,7]
[379934168,1755442286353,-687.64865,0.000226,7]
[379934169,1755442286363,-983.609175,0.000226,7]
[379934170,1755442286373,-983.609175,0.000226,7]
[379934171,1755442286382,-4427.95191794,0.00022604,2]
[379934172,1755442286542,-572.04808206,0.00022604,2]
[379934173,1755442286553,-4000.0,0.00022608,2]
[379934174,1755442286563,-904.90182795,0.00022608,2]
[379934175,1755442286695,-1706.5601973,0.00022608,2]
[379934176,1755442286882,480.0,0.00018369,2]
[379934177,1755442286996,-501.78180623,0.00018455,2]
[379934178,1755442287006,-480.0,0.00018457,2]
[379934179,1755442287015,-463.19771566,0.00018465,2]
[379934180,1755442287025,-351.6452701,0.00018466,2]
[379934181,1755442287035,-480.0,0.00018467,2]
[379934182,1755442287048,-151.0,0.00018766,2]
[379934183,1755442287057,-151.0,0.00018766,2]
[379934184,1755442287067,-480.0,0.00019564,2]
[379934185,1755442287076,-480.0,0.00019838,2]
[379934186,1755442287086,-480.0,0.00020112,2]
[379934187,1755442287096,-480.0,0.00020386,2]
[379934188,1755442287106,-1388.53797475,0.00022608,2]
[379934189,1755442287115,-151.0,0.0002263,7]
[379934190,1755442287125,-151.0,0.00022639,7]
[379934191,1755442287134,-1191.07428144,0.00022664,2]
[379934192,1755442287144,-1264.81415349,0.00022664,2]
[379934193,1755442287154,-2500.0,0.00022664,2]
[379934194,1755442287164,-2500.0,0.00022664,2]
[379934195,1755442287174,-2571.54091121,0.00022664,2]
[379934196,1755442287185,-864.0,0.00022671,20]
[379934197,1755442287196,-37640.04118946,0.0002269,2]
[379934198,1755442287208,-12682.46447135,0.000227,7]
[379934199,1755442287217,-228.443223,0.000227,7]
[379934200,1755442287233,-228.443223,0.000227,7]
[379934201,1755442287245,-2163.9749631,0.00022712,2]
[379934202,1755442287255,-2731.60244695,0.00022712,2]
[379934203,1755442287265,-3000.0,0.00022712,2]
[379934204,1755442287274,-2778.40611179,0.00022712,2]
[379934205,1755442287284,-3000.0,0.00022712,2]
[379934206,1755442287294,-983.609175,0.00022716,7]
[379934207,1755442287315,-983.609174,0.00022716,7]
[379934208,1755442287349,-300.010742,0.00022739,7]
[379934209,1755442287359,-300.010742,0.00022739,7]
[379934210,1755442287369,-151.0,0.00022739,7]
[379934211,1755442287379,-410.539385,0.00022739,7]
[379934212,1755442287389,-410.539385,0.00022739,7]
[379934213,1755442287398,-151.0,0.00022739,7]
[379934214,1755442287408,-169.929234,0.00022739,7]
[379934215,1755442287418,-493.313819,0.00022739,7]
[379934216,1755442287428,-493.313819,0.00022739,7]
[379934217,1755442287437,-151.0,0.00022739,7]
[379934218,1755442287446,-151.0,0.00022739,7]
[379934219,1755442287455,-273.692923,0.00022739,7]
[379934220,1755442287466,-273.692923,0.00022739,7]
[379934221,1755442287475,-12500.0,0.00022739,7]
[379934222,1755442287485,-872.0,0.0002274,2]
[379934223,1755442287494,-527.36,0.00022753,2]
[379934224,1755442287503,-912.72,0.00022753,2]
[379934225,1755442287513,-480.0,0.00022753,2]
[379934226,1755442287523,-563.11,0.00022753,2]
[379934227,1755442287532,-480.0,0.00022753,2]
[379934228,1755442287541,-591.29,0.00022753,2]
[379934229,1755442287550,-480.0,0.00022753,2]
[379934230,1755442287559,-1163.69,0.00022753,2]
[379934231,1755442287569,-480.0,0.00022753,2]
[379934232,1755442287578,-908.19,0.00022753,2]
[379934233,1755442287591,-480.0,0.00022753,2]
[379934234,1755442287601,-234.55416939,0.00022753,2]
[379934235,1755442287610,-709.65,0.00022753,2]
[379934236,1755442287624,-1949.06,0.00022753,2]
[379934237,1755442287633,-2225.78,0.00022753,2]
[379934238,1755442287643,-888.02301283,0.00022753,2]
[379934239,1755442287655,-112.29698717,0.00022753,2]
[379934240,1755442287664,-143.60802444,0.00022753,2]
[379934241,1755442287675,-514.49783052,0.00022753,2]
[379934242,1755442287686,-603.519,0.00022753,2]
[379934243,1755442287699,-175.19514504,0.00022753,2]
[379934244,1755442287709,-1004.49765496,0.00022753,2]
[379934245,1755442287722,-5056.96234504,0.00022753,2]
[379934246,1755442287731,-1175.2,0.00022753,2]
[379934247,1755442287741,-763.93,0.00022753,2]
[379934248,1755442287750,-526.35,0.00022753,2]
[379934249,1755442287759,-480.0,0.00022753,2]
[379934250,1755442287769,-695.09,0.00022753,2]
[379934251,1755442287779,-715.83,0.00022753,2]
[379934252,1755442287788,-494.32,0.00022753,2]
[379934253,1755442287798,-504.66,0.00022753,2]
[379934254,1755442287808,-190.26572278,0.00022763,2]
[379934255,1755442287817,-5039.85994276,0.00022784,2]
[379934256,1755442287826,-5000.0,0.00022784,2]
[379934257,1755442287835,-5000.0,0.00022784,2]
[379934258,1755442287845,-5000.0,0.00022784,2]
[379934259,1755442287854,-5000.0,0.00022784,2]
[379934260,1755442287864,-4000.0,0.00022787,2]
[379934261,1755442287874,-600.0,0.00022817,2]
[379934262,1755442287884,-168.504209,0.00022848,2]
[379934263,1755442287893,-1819.3,0.00022848,2]
[379934264,1755442287902,-3256.49,0.00022849,2]
[379934265,1755442287912,-480.0,0.0002285,2]
[379934266,1755442287922,-698.95,0.0002285,2]
[379934267,1755442287932,-687.45,0.0002285,2]
[379934268,1755442287942,-549.85,0.0002285,2]
[379934269,1755442287951,-971.72,0.0002285,2]
[379934270,1755442287960,-480.0,0.0002285,2]
[379934271,1755442287970,-573.88,0.0002285,2]
[379934272,1755442287980,-809.41,0.0002285,2]
[379934273,1755442287989,-719.18,0.0002285,2]
[379934274,1755442287998,-480.0,0.0002285,2]
[379934275,1755442288008,-584.35,0.0002285,2]
[379934276,1755442288018,-492.35,0.0002285,2]
[379934277,1755442288027,-894.92,0.00022851,2]
[379934278,1755442288037,-7675.82,0.00022851,2]
[379934279,1755442288047,-990.44,0.00022851,2]
[379934280,1755442288056,-5032.79,0.00022851,2]
[379934281,1755442288066,-788.99,0.00022852,2]
[379934282,1755442288075,-613.42,0.00022852,2]
[379934283,1755442288085,-581.88,0.00022852,2]
[379934284,1755442288095,-1673.56,0.00022852,2]
[379934285,1755442288104,-2358.67,0.00022852,2]
[379934286,1755442288113,-4000.0,0.00022857,4]
[379934287,1755442288123,-8096.50003085,0.00022873,2]
[379934288,1755442288132,-162.461693,0.00022873,2]
[379934289,1755442288141,-760.0,0.00022888,2]
[379934290,1755442288150,-2000.0,0.000229,2]
[379934291,1755442288160,-8827.72446853,0.0002292,2]
[379934292,1755442288170,-151.0,0.0002292,7]
[379934293,1755442288179,-228.443223,0.00022978,7]
[379934294,1755442288188,-228.443231,0.00022978,7]
[379934295,1755442288197,-150.0,0.00022985,30]
[379934296,1755442288207,-250.0,0.00022987,2]
[379934297,1755442288216,-8870.08924771,0.00023,7]
[379934298,1755442288228,-223.83075229,0.00023,7]
[379934299,1755442288237,-306.27924771,0.00023,2]
[379934300,1755442288253,-480.0,0.00018643,2]
[379934301,1755442288265,-1694.58709385,0.00023,2]
[379934302,1755442288274,-5065.59587876,0.00023,2]
[379934303,1755442288284,-2942.73210638,0.00023,2]
[379934304,1755442288293,-1799.999999,0.00023,2]
[379934305,1755442288302,-151.0,0.00023,7]
[379934306,1755442288311,-31280.86,0.00023,7]
[379934307,1755442288321,-160.0,0.00023,2]
[379934308,1755442288330,-160.0,0.00023,3]
[379934309,1755442288339,-160.0,0.00023,3]
[379934310,1755442288348,-232.1512529,0.00023,3]
[379934311,1755442288357,-843.71309931,0.00023,3]
[379934312,1755442288366,-160.0,0.00023,3]
[379934313,1755442288376,-160.0,0.00023,3]
[379934314,1755442288385,-160.0,0.00023,3]
[379934315,1755442288395,-528.48506731,0.00023,3]
[379934316,1755442288404,-160.0,0.00023,3]
[379934317,1755442288413,-160.0,0.00023,3]
[379934318,1755442288423,-216.83204348,0.00023,3]
[379934319,1755442288432,-286.0,0.00023,7]
[379934320,1755442288442,-502.25,0.00023003,2]
[379934321,1755442288451,-151.0,0.00023013,7]
[379934322,1755442288462,-350.0,0.00023014,2]
[379934323,1755442288472,-872.0,0.00023014,2]
[379934324,1755442288481,-527.36,0.00023027,2]
[379934325,1755442288490,-912.72,0.00023027,2]
[379934326,1755442288500,-480.0,0.00023027,2]
[379934327,1755442288509,-563.11,0.00023027,2]
[379934328,1755442288519,-480.0,0.00023027,2]
[379934329,1755442288528,-591.29,0.00023027,2]
[379934330,1755442288538,-480.0,0.00023027,2]
[379934331,1755442288547,-1163.69,0.00023027,2]
[379934332,1755442288556,-480.0,0.00023027,2]
[379934333,1755442288566,-908.19,0.00023027,2]
[379934334,1755442288576,-480.0,0.00023027,2]
[379934335,1755442288586,-709.65,0.00023027,2]
[379934336,1755442288595,-1949.06,0.00023027,2]
[379934337,1755442288604,-2225.78,0.00023027,2]
[379934338,1755442288614,-1000.32,0.00023027,2]
[379934339,1755442288626,-1436.82,0.00023027,2]
[379934340,1755442288635,-6061.46,0.00023027,2]
[379934341,1755442288644,-1175.2,0.00023027,2]
[379934342,1755442288654,-763.93,0.00023027,2]
[379934343,1755442288665,-526.35,0.00023027,2]
[379934344,1755442288674,-480.0,0.00023027,2]
[379934345,1755442288685,-695.09,0.00023027,2]
[379934346,1755442288695,-715.83,0.00023027,2]
[379934347,1755442288704,-494.32,0.00023027,2]
[379934348,1755442288715,-504.66,0.00023027,2]
[379934349,1755442288724,-168.504209,0.0002304,3]
[379934350,1755442288733,-5000.0,0.00023055,2]
[379934351,1755442288743,-5000.0,0.00023055,2]
[379934352,1755442288752,-273.692923,0.00023055,7]
[379934353,1755442288762,-273.692931,0.00023055,7]
[379934354,1755442288771,-410.539385,0.00023068,7]
[379934355,1755442288780,-410.539385,0.00023068,7]
[379934356,1755442288790,-151.0,0.00023068,7]
[379934357,1755442288800,-493.313819,0.00023068,7]
[379934358,1755442288809,-493.313819,0.00023068,7]
[379934359,1755442288818,-151.0,0.00023068,7]
[379934360,1755442288827,-151.0,0.00023068,7]
[379934361,1755442288838,-450.0,0.00023068,2]
[379934362,1755442288848,-1500.0,0.00023068,2]
[379934363,1755442288858,-1500.0,0.00023068,2]
[379934364,1755442288867,-1072.03085935,0.00023068,2]
[379934365,1755442288876,-1071.95782399,0.00023068,2]
[379934366,1755442288886,-200.0,0.0002307,6]
[379934367,1755442288895,-12968.79522491,0.000231,2]
[379934368,1755442288907,-19419.93513241,0.000231,2]
[379934369,1755442288979,-19383.54741955,0.000231,2]
[379934370,1755442289289,5000.0,0.00018371,2]
[379934371,1755442289386,480.0,0.00018369,2]
[379934372,1755442289540,-284.04766907,0.00018457,2]
[379934373,1755442289877,240.81804071,0.00018369,2]
[379934374,1755442289900,239.18195929,0.00018369,2]
[379934375,1755442289988,480.0,0.00018369,2]
[379934376,1755442291262,-195.95233093,0.00018457,2]
[379934377,1755442291272,-474.98986139,0.00018465,2]
[379934378,1755442291281,-404.10101837,0.00018465,2]
[379934379,1755442291290,-440.0,0.00018466,2]
[379934380,1755442291299,-55.40678981,0.00018466,2]
[379934381,1755442291321,-270.1,0.00018466,2]
[379934382,1755442291521,480.0,0.00018369,2]
[379934383,1755442291745,480.0,0.00018369,2]
[379934384,1755442291837,480.0,0.00018369,2]
[379934385,1755442292099,480.0,0.00018369,2]
[379934386,1755442292410,452.39421209,0.00018369,2]
[379934387,1755442292485,480.0,0.00018369,2]
[379934388,1755442292663,480.0,0.00018369,2]
[379934389,1755442293062,480.0,0.00018369,2]
[379934390,1755442293210,480.0,0.00018369,2]
[379934391,1755442293427,480.0,0.00018369,2]
[379934392,1755442294043,480.0,0.00018369,2]
[379934394,1755442298676,480.0,0.00018369,2]
[379934395,1755442300001,480.0,0.00018369,2]
[379934396,1755442300946,480.0,0.00018369,2]
[379934397,1755442301267,480.0,0.00018369,2]
[379934398,1755442302945,487.26,0.00018369,2]
[379934399,1755442304581,1621.16382862,0.00018371,2]
[379934400,1755442304605,3378.83617138,0.00018371,2]
[379934401,1755442307196,481.56838945,0.00018369,2]
[379934402,1755442309503,480.0,0.00018369,2]
[379934403,1755442309929,160.0,0.00018369,2]
[379934404,1755442311859,480.0,0.00018369,2]
[379934405,1755442313777,480.0,0.00018369,2]
[379934406,1755442315098,480.0,0.00018369,2]
[379934407,1755442318300,480.0,0.00018369,2]
[379934408,1755442320501,3579.59543917,0.00018371,2]
[379934409,1755442320526,1420.40456083,0.00018371,2]
[379934410,1755442324554,1544.45,0.00018369,2]
[379934411,1755442325897,480.0,0.00018369,2]
[379934412,1755442327680,480.0,0.00018369,2]
[379934413,1755442328142,6075.14543917,0.00018357,2]
[379934414,1755442328165,10000.0,0.00018357,2]
[379934415,1755442328187,10000.0,0.00018357,2]
[379934416,1755442328209,9269.91455942,0.00018357,2]
[379934417,1755442328775,480.0,0.00018369,2]
[379934418,1755442329164,250.08544058,0.00018371,2]
[379934419,1755442329188,4749.91455942,0.00018371,2]
[379934420,1755442332043,462.7656651,0.00018369,2]
[379934421,1755442337256,519.26491362,0.00018369,2]
[379934422,1755442338142,4268.05486186,0.00018371,2]
[379934423,1755442338166,731.94513814,0.00018371,2]
[379934424,1755442338239,480.0,0.00018369,2]
[379934425,1755442342044,460.88784116,0.00018369,2]
[379934426,1755442342119,478.45395406,0.00018369,2]
[379934427,1755442344995,440.0,0.00018369,2]
[379934428,1755442346961,480.0,0.00018369,2]
[379934429,1755442347847,480.0,0.00018369,2]
[379934430,1755442349533,480.0,0.00018369,2]
[379934431,1755442351739,465.62496256,0.00018369,2]
[379934432,1755442352013,214.61512769,0.00018357,2]
[379934433,1755442352043,480.0,0.00018369,2]
[379934434,1755442352082,480.0,0.00018369,2]
[379934435,1755442355007,480.0,0.00018369,2]
[379934436,1755442355068,3848.47297639,0.00018371,2]
[379934437,1755442355092,1151.52702361,0.00018371,2]
[379934438,1755442357019,480.0,0.00018369,2]
[379934439,1755442357195,462.74766942,0.00018369,2]
[379934440,1755442358473,480.0,0.00018369,2]
[379934441,1755442359697,480.0,0.00018369,2]
[379934442,1755442360665,460.62362032,0.00018369,2]
[379934443,1755442362060,480.0,0.00018369,2]
[379934444,1755442364718,542.057624,0.00013699,2]
[379934445,1755442365956,266.07865685,0.00018369,2]
[379934446,1755442367320,480.0,0.00018369,2]
[379934447,1755442367819,480.0,0.00018369,2]
[379934448,1755442371024,480.0,0.00018369,2]
[379934449,1755442371606,460.0,0.00018369,2]
[379934450,1755442371996,3296.9654058,0.00018371,2]
[379934451,1755442372022,1703.0345942,0.00018371,2]
[379934453,1755442373699,460.0,0.00018369,2]
[379934454,1755442375563,480.0,0.00018369,2]
[379934455,1755442375687,460.46169656,0.00018369,2]
[379934456,1755442378027,480.0,0.00018369,2]
[379934457,1755442385087,460.0,0.00018369,2]
[379934458,1755442388168,460.9902868,0.00018369,2]
[379934459,1755442388407,5000.0,0.00018371,2]
[379934460,1755442392262,480.0,0.00018369,2]
[379934463,1755442397058,15.51342244,0.00018369,2]
[379934464,1755442397082,464.48657756,0.00018369,2]
[379934465,1755442400220,480.0,0.00018369,2]
[379934466,1755442401127,480.0,0.00018369,2]
[379934467,1755442401855,480.0,0.00018369,2]
[379934468,1755442403639,480.0,0.00018369,2]
[379934469,1755442407002,5000.0,0.00018371,2]
[379934470,1755442407891,480.0,0.00018369,2]
[379934471,1755442408693,375.22435717,0.00018369,2]
[379934472,1755442409124,1760.28906527,0.00018357,2]
[379934473,1755442409147,2149.39748983,0.00018357,2]
[379934474,1755442416945,480.0,0.00018369,2]